[Event "Slovakian-ch Youth 2022"]
[Site "Lubovna"]
[Date "2022.05.24"]
[Round "5.1"]
[White "Turcan, Richard"]
[Black "Bochnicka, Vladimir"]
[Result "1-0"]
[ECO "A01"]
[WhiteElo "2278"]
[BlackElo "2267"]
[Annotator "TA"]
[PlyCount "71"]
[EventDate "2022.05.22"]
[EventCountry "SVK"]
[SourceTitle "playchess.com"]
[Source "ChessBase"]
[SourceQuality "1"]
[TimeControl "40/5400+30:1800+30"]

{[%evp 9,71,5,12,6,8,-85,-32,-69,-43,-46,-47,-43,-39,-145,-158,-202,-209,-201,-206,-200,30,21,33,39,28,17,209,221,216,195,220,215,261,252,256,262,267,113,112,80,82,89,319,306,319,315,315,313,312,311,309,301,295,282,288,256,257,274,259,264,968,937,1562,1536]} 1. b3 {[%emt 0:02:33]} e5 {[%emt 0:00:08]} 2. Bb2 {[%emt 0:00:15]} Nc6 {[%emt 0:00:09]} 3. e3 {[%emt 0:00:08]} Nf6 {[%emt 0:00:13]} 4. Bb5 {[%emt 0:00:11]} Bd6 {[%emt 0:00:17]} 5. Na3 {[%emt 0:01:10]} Be7 {[%emt 0:01:06]} 6. Nc4 {[%emt 0:01:59] A01: Nimzowitsch-Larsen Opening.} e4 {[%emt 0:01:29]} 7. f4 {[%emt 0:21:59]} (7. Bxc6 $11 {keeps the balance.} bxc6 8. Ne2) 7... O-O {[%emt 0:05:14] [#]} (7... Nb4 $17 {White must now prevent ...a6.} 8. Na3 a6) 8. Ne5 $146 {[%emt 0:04:56] Black is slightly better.} ({Predecessor:} 8. Bxc6 bxc6 9. Ne2 a5 10. O-O a4 11. Ng3 c5 12. Nf5 d5 13. Nxe7+ Qxe7 14. Ne5 {½-½ (41) Ott,P (2171)-Janisch,M (2376) ICCF email 2015}) 8... Nxe5 {[%emt 0:18:34]} 9. fxe5 {[%emt 0:00:14]} Ne8 {[%emt 0:01:42]} 10. Nh3 {[%emt 0:06:44]} d6 {[%emt 0:01:40]} 11. Nf4 {[%emt 0:00:40]} ({Better is} 11. Nf2 $15) 11... dxe5 $1 $17 {[%emt 0:04:53]} 12. Bxe5 {[%emt 0:01:29]} g5 $1 {[%emt 0:08:24]} 13. Bxe8 {[%emt 0:12:43][%cal Oe8b5]} gxf4 {[%emt 0:02:29]} (13... Rxe8 14. Nh5 $11) 14. Ba4 {[%emt 0:01:38]} Qd5 $2 {[%emt 0:04:21]} (14... b5 $1 $19 {...fxe3 is the strong threat.} 15. Bxb5 Qd5 16. Bxf4 Qxb5) 15. Bxf4 $11 {[%emt 0:01:08]} Bh4+ {[%emt 0:08:04]} (15... b5 16. c4 bxc4 17. Rc1 $16) 16. g3 {[%emt 0:04:30]} Bf6 {[%emt 0:00:08]} 17. O-O {[%emt 0:05:18]} (17. Bxc7 $2 b5 18. c4 Qc5 19. Bxb5 Qxc7 $19) 17... Rd8 $2 {[%emt 0:05:56]} (17... Bh3 $11 {and Black is okay.} 18. Rf2 Bxa1 19. Qxa1 Qh5) 18. Bxc7 $18 {[%emt 0:05:46]} Bxa1 {[%emt 0:04:37]} 19. Qxa1 {[%emt 0:02:21]} Bh3 {[%emt 0:11:30]} 20. Qf6 $1 {[%emt 0:01:48]} ({And not} 20. Bxd8 Bxf1 21. Bc7 (21. Qxf1 Rxd8 22. Bb5 Qxd2 $17) 21... Bh3 $11) 20... Re8 {[%emt 0:05:51]} 21. Bxe8 {[%emt 0:01:28]} Rxe8 {[%emt 0:00:06]} 22. Rf4 {[%emt 0:04:54]} Qh5 {[%emt 0:01:32] [#] Prevents g4.} 23. g4 {[%emt 0:02:27]} (23. Kf2 $1 $18 {and the rest is easy.}) 23... Bxg4 $16 {[%emt 0:00:30]} 24. h4 {[%emt 0:05:59] White is more active.} Bf3 {[%emt 0:04:19]} 25. Kf2 $40 {[%emt 0:03:26][%mdl 128] Threatens to win with Rf5. White wants a kill.} Bd1 $2 {[%emt 0:02:42]} (25... Qg6 $16 26. Qxg6+ hxg6) 26. Rf5 $18 {[%emt 0:02:15] The board is on fire.} Qe2+ {[%emt 0:01:31]} 27. Kg1 {[%emt 0:00:14]} Qg4+ {[%emt 0:00:43]} 28. Kh2 {[%emt 0:00:22]} Qe2+ {[%emt 0:00:27]} 29. Rf2 {[%emt 0:02:39]} Qh5 {[%emt 0:00:06]} 30. Rg2+ {[%emt 0:01:03]} Bg4 {[%emt 0:00:05]} 31. Bd6 {[%emt 0:01:20][%cal Bc7d6,Bd6b4,Bb4c3][%mdl 32] Strongly threatening Bb4.} h6 {[%emt 0:01:55]} 32. Bb4 {[%emt 0:01:06]} Re6 {[%emt 0:03:08]} 33. Qd8+ {[%emt 0:00:08]} Kh7 {[%emt 0:00:06]} 34. Bc3 {[%emt 0:00:34] Against Qe5+. Threatening mate with Qh8+.} Re8 {[%emt 0:00:09] Prevents Qh8+.} (34... f6 35. Qc7+ Kg8) 35. Qf6 {[%emt 0:00:38][%csl Gc3][%cal Rf6g7]} ({Stronger than} 35. Qxe8 Qxh4+ 36. Kg1 Qe1+ 37. Kh2 Qh4+ 38. Kg1 Qe1+ 39. Kh2 Qh4+ $11) 35... Rg8 {[%emt 0:00:09] [#] Against Qg7+} 36. Rxg4 $1 {[%emt 0:00:41][%mdl 512] Weighted Error Value: White=0.21 (precise) /Black=0.38} 1-0

[Event "Slovakian-ch Youth 2022"]
[Site "Lubovna"]
[Date "2022.05.24"]
[Round "5.1"]
[White "Elias, David"]
[Black "Gay, Lukas"]
[Result "1-0"]
[ECO "B01"]
[WhiteElo "1901"]
[BlackElo "1480"]
[Annotator "TA"]
[PlyCount "91"]
[EventDate "2022.05.22"]
[EventCountry "SVK"]
[SourceTitle "playchess.com"]
[Source "ChessBase"]
[SourceQuality "1"]
[TimeControl "40/5400+30:1800+30"]

{[%evp 9,90,10,37,32,33,33,32,23,38,42,54,22,33,0,2,2,26,-1,24,8,20,27,57,46,57,51,80,50,62,29,21,27,75,43,77,82,77,77,56,66,67,0,48,71,91,81,173,181,180,162,175,172,154,116,715,714,702,672,829,817,797,490,772,280,279,270,252,269,351,265,550,329,332,303,952,945,900,900,29974,29975,29968,29967,29999]} 1. e4 {[%emt 0:00:02]} d5 {[%emt 0:00:25]} 2. exd5 {[%emt 0:00:15]} Qxd5 {[%emt 0:00:33]} 3. Nc3 {[%emt 0:00:14]} Qd6 {[%emt 0:00:44]} 4. d4 {[%emt 0:00:49]} Nf6 {[%emt 0:00:52]} 5. g3 {[%emt 0:01:16]} g6 {[%emt 0:01:15]} 6. Bg2 {[%emt 0:00:07] B01: Scandinavian Defence.} Bg7 {[%emt 0:00:13]} 7. Nge2 {[%emt 0:01:05]} O-O {[%emt 0:03:30]} 8. O-O {[%emt 0:00:07] [#] White is slightly better.} Nc6 $146 {[%emt 0:02:51]} ({Predecessor:} 8... c6 9. Bf4 Qd8 10. Qd2 Bf5 11. Rfe1 Nbd7 12. Rad1 Nb6 13. h3 h5 14. Qc1 Qd7 {½-½ (136) Miranda Mesa,E (2436)-Cordova,E (2629) Monterrey 2015}) 9. Bf4 {[%emt 0:03:09]} Qd7 {[%emt 0:01:47]} 10. Qd2 {[%emt 0:08:04]} (10. d5 $5 {[%cal Rd5c6]} Nd8 11. Nd4 $16) 10... Nh5 {[%emt 0:05:12]} 11. Rad1 {[%emt 0:07:59]} Nxf4 {[%emt 0:01:42]} 12. Qxf4 {[%emt 0:00:35]} Qd6 {[%emt 0:04:17]} 13. Qe3 {[%emt 0:17:25]} a6 {[%emt 0:01:31]} 14. Ne4 {[%emt 0:00:29]} Qb4 {[%emt 0:06:04]} 15. b3 {[%emt 0:10:52]} Rd8 {[%emt 0:06:03]} 16. c3 {[%emt 0:07:59]} Qb6 {[%emt 0:02:17]} 17. Nc5 {[%emt 0:01:28]} e6 {[%emt 0:04:45]} 18. Rfe1 {[%emt 0:02:30]} Ne7 {[%emt 0:04:24]} 19. Qf3 {[%emt 0:05:50][%cal Rc5b7]} Rb8 {[%emt 0:04:40]} 20. Nf4 {[%emt 0:03:38]} Nd5 {[%emt 0:02:50]} (20... Bd7 $11) 21. Ne4 $16 {[%emt 0:05:28]} Nxf4 {[%emt 0:01:21]} 22. Qxf4 {[%emt 0:01:45]} Bd7 {[%emt 0:01:07]} 23. Nf6+ {[%emt 0:02:30]} ({Much weaker is} 23. Ng5 Be8 $11) 23... Bxf6 {[%emt 0:00:29]} 24. Qxf6 {[%emt 0:00:04]} Bc6 {[%emt 0:00:09]} 25. Bh3 {[%emt 0:07:21]} ({White should try} 25. d5 $1 $14 exd5 26. Re7) 25... Re8 {[%emt 0:01:36]} (25... Qa5 $11 {should be considered.}) 26. Re5 $14 {[%emt 0:00:57]} Rbd8 {[%emt 0:01:23]} 27. Rxe6 {[%emt 0:02:01]} Rxe6 {[%emt 0:00:35]} (27... fxe6 $2 28. Bxe6+ Rxe6 29. Qxe6+ Kf8 30. Qf6+ Ke8 31. Re1+ Be4 32. Qg7 $18) (27... Qa5 $16 {was called for.}) 28. Bxe6 $18 {[%emt 0:00:55][%cal Bh3e6,Be6c4,Bc4b3][%mdl 32]} ({Resist} 28. Qxd8+ $6 Re8 29. Qg5 (29. Qf6 Qb5 $11) 29... Bf3 $14) 28... Rf8 {[%emt 0:00:33][%cal Oc6d7] [#] White must now prevent ...Bd7!} 29. Bc4 $40 {[%emt 0:01:05][%mdl 128] White is out for blood.} Qa5 {[%emt 0:00:06]} 30. d5 {[%emt 0:01:08]} Bb5 {[%emt 0:00:05]} 31. b4 {[%emt 0:01:24] 0x0.001b5aaecab9dp-1022s more active pieces.} Qa4 {[%emt 0:00:28][%mdl 8192] This move loses the game for Black.} (31... Qa3 $16 32. Bxb5 axb5) 32. Bb3 {[%emt 0:00:10]} Qa3 {[%emt 0:00:08]} 33. h4 {[%emt 0:00:37]} Ba4 {[%emt 0:00:33]} 34. h5 {[%emt 0:00:25]} gxh5 {[%emt 0:00:32]} 35. Qg5+ {[%emt 0:02:11]} Kh8 {[%emt 0:00:06]} 36. Qxh5 $2 {[%emt 0:01:11]} (36. Re1 Bxb3 37. axb3) 36... Bxb3 {[%emt 0:00:06]} 37. axb3 {[%emt 0:00:26]} Qxb3 {[%emt 0:00:10][%mdl 4096] Endgame KQR-KQR} 38. Qf3 {[%emt 0:00:35]} Kg7 {[%emt 0:01:25]} 39. Kg2 {[%emt 0:00:58] [#] aiming for Rd4.} b6 $2 {[%emt 0:00:46]} (39... f5 40. Rd4 (40. d6 cxd6 41. Rxd6 Qf7 $16) 40... Rf7) 40. d6 {[%emt 0:01:15]} cxd6 {[%emt 0:00:19]} 41. Rxd6 {[%emt 0:30:15]} Rb8 $2 {[%emt 0:30:12]} (41... Re8 42. Qg4+ Kf8) 42. Qf6+ {[%emt 0:02:16]} Kg8 {[%emt 0:01:00]} 43. Qg5+ {[%emt 0:02:07]} Kh8 {[%emt 0:00:12]} 44. Qe5+ {[%emt 0:00:22] White mates.} Kg8 {[%emt 0:00:09]} 45. Rd4 {[%emt 0:00:43]} Rb7 {[%emt 0:00:39]} 46. Rd8# {[%emt 0:00:15] Weighted Error Value: White=0.31/Black=0.42} 1-0

[Event "Slovakian-ch Youth 2022"]
[Site "Lubovna"]
[Date "2022.05.24"]
[Round "5.1"]
[White "Kampe, Thomas Andre Ankil"]
[Black "Horny, Michal"]
[Result "1/2-1/2"]
[ECO "B32"]
[WhiteElo "1693"]
[BlackElo "1109"]
[Annotator "NA RC COMBH"]
[PlyCount "23"]
[EventDate "2022.05.22"]
[EventCountry "SVK"]
[SourceTitle "playchess.com"]
[Source "ChessBase"]
[SourceQuality "1"]
[TimeControl "40/5400+30:1800+30"]

1. e4 {[%emt 0:00:01]} c5 {[%emt 0:00:05]} 2. Nf3 Nc6 {[%emt 0:00:13]} 3. d4 {[%emt 0:00:25]} cxd4 {[%emt 0:00:33]} 4. Nxd4 {[%emt 0:00:13]} e5 {[%emt 0:00:54]} 5. Nb5 {[%emt 0:00:08]} a6 {[%emt 0:01:30]} 6. Nd6+ {[%emt 0:00:12]} Bxd6 {[%emt 0:03:00]} 7. Qxd6 {[%emt 0:00:16]} Qf6 {[%emt 0:02:42]} 8. Qc7 {[%emt 0:00:34]} Qd8 {[%emt 0:05:04]} 9. Qd6 {[%emt 0:01:25]} Qf6 {[%emt 0:04:44]} 10. Qc7 {[%emt 0:00:34]} d6 {[%emt 0:07:15]} 11. Nc3 {[%emt 0:00:35]} Qe7 {[%emt 0:05:06]} 12. Nd5 1/2-1/2

[Event "Slovakian-ch Youth 2022"]
[Site "Lubovna"]
[Date "2022.05.24"]
[Round "5.1"]
[White "Matejka, Simon"]
[Black "Pisarcik, Richard"]
[Result "1/2-1/2"]
[ECO "C50"]
[WhiteElo "1235"]
[BlackElo "1343"]
[Annotator "NA RC COMBH"]
[PlyCount "53"]
[EventDate "2022.05.22"]
[EventCountry "SVK"]
[SourceTitle "playchess.com"]
[Source "ChessBase"]
[SourceQuality "1"]
[TimeControl "40/5400+30:1800+30"]

1. e4 {[%emt 0:00:15]} e5 {[%emt 0:00:42]} 2. Nf3 {[%emt 0:00:22]} Nc6 {[%emt 0:00:40]} 3. Bc4 {[%emt 0:01:00]} Bc5 {[%emt 0:00:58]} 4. O-O {[%emt 0:00:54]} d6 {[%emt 0:00:17]} 5. d3 {[%emt 0:01:30]} Bg4 {[%emt 0:01:04]} 6. c3 {[%emt 0:02:08]} Nf6 {[%emt 0:01:15]} 7. Qb3 {[%emt 0:03:34]} Bxf3 {[%emt 0:06:19]} 8. Bxf7+ {[%emt 0:02:15]} Kf8 {[%emt 0:00:03]} 9. gxf3 {[%emt 0:00:58]} Rb8 {[%emt 0:05:00]} 10. Be6 {[%emt 0:04:36]} h6 {[%emt 0:02:13]} 11. Be3 {[%emt 0:04:40]} Bxe3 {[%emt 0:01:09]} 12. fxe3 {[%emt 0:00:27]} Nh5 {[%emt 0:00:24]} 13. f4 {[%emt 0:03:54]} exf4 {[%emt 0:00:13]} 14. exf4 {[%emt 0:01:19]} Qh4 {[%emt 0:01:04]} 15. Bd7 {[%emt 0:05:51]} Nxf4 {[%emt 0:01:40]} 16. Rxf4+ {[%emt 0:04:43]} Qxf4 {[%emt 0:00:14]} 17. Bxc6 {[%emt 0:00:37]} Qe3+ {[%emt 0:01:09]} 18. Kg2 {[%emt 0:02:26]} Qe2+ 19. Kg1 {[%emt 0:01:19]} Ke7 {[%emt 0:02:03]} 20. Bd5 {[%emt 0:06:02]} Rhf8 {[%emt 0:00:46]} 21. Na3 {[%emt 0:00:56]} Rf2 {[%emt 0:00:40]} 22. e5 {[%emt 0:01:36]} Rxh2 {[%emt 0:03:45]} 23. exd6+ {[%emt 0:02:35]} cxd6 {[%emt 0:00:25]} 24. Rf1 {[%emt 0:04:38]} b5 {[%emt 0:06:15]} 25. Rf7+ {[%emt 0:04:13]} Kd8 {[%emt 0:02:18]} 26. Rf8+ {[%emt 0:00:52]} Ke7 {[%emt 0:00:20]} 27. Rf7+ {[%emt 0:00:30]} 1/2-1/2

[Event "Slovakian-ch Youth 2022"]
[Site "Lubovna"]
[Date "2022.05.24"]
[Round "5.2"]
[White "Brnusak, Tomas"]
[Black "Zetocha, Adrian"]
[Result "1/2-1/2"]
[ECO "B12"]
[WhiteElo "2212"]
[BlackElo "2331"]
[Annotator "TA"]
[PlyCount "56"]
[EventDate "2022.05.22"]
[EventCountry "SVK"]
[SourceTitle "playchess.com"]
[Source "ChessBase"]
[SourceQuality "1"]
[TimeControl "40/5400+30:1800+30"]

{[%evp 13,56,0,4,0,0,-23,-22,-46,-43,-33,14,9,11,15,10,6,18,12,23,22,74,5,0,0,0,6,5,14,99,14,10,20,14,14,20,0,1,0,0,0,324,310,294,0,0]} 1. e4 {[%emt 0:00:13]} c6 {[%emt 0:01:18]} 2. d4 {[%emt 0:00:05]} d5 {[%emt 0:00:10]} 3. e5 {[%emt 0:00:05]} Bf5 {[%emt 0:00:35]} 4. h4 {[%emt 0:00:05]} h5 {[%emt 0:00:32]} 5. c4 {[%emt 0:00:05]} e6 {[%emt 0:03:03]} 6. Nc3 {[%emt 0:00:46]} dxc4 {[%emt 0:08:24]} 7. Bxc4 {[%emt 0:00:07]} Be7 {[%emt 0:00:14]} 8. Be3 {[%emt 0:11:02] B12: Caro-Kann: Advance Variation.} Nh6 {[%emt 0:05:45]} 9. g3 {[%emt 0:08:43]} (9. Qxh5 $2 Bg4 10. Qg5 Bxg5 $19) 9... Nd7 {[%emt 0:04:09] [#]} 10. Be2 $146 {[%emt 0:09:41]} (10. Qxh5 $2 Bg4 11. Qg5 Bxg5 $19) ({Predecessor:} 10. f3 Nb6 11. Bb3 Qd7 12. Nge2 O-O-O 13. Qc1 Kb8 14. O-O Nd5 15. Bxd5 exd5 16. Qd2 {0-1 (43) Jablecnik,G (2092)-Vodak,R (2029) Czech Republic 2019}) 10... Ng4 {[%emt 0:11:26]} 11. Bf4 {[%emt 0:01:38]} c5 {[%emt 0:14:05]} (11... Qb6 $15 {deserves consideration.} 12. Qd2 O-O-O) 12. f3 $11 {[%emt 0:07:15]} Nh6 {[%emt 0:07:19]} (12... Qb6 {is interesting.} 13. Bb5 cxd4 14. Bxd7+ Kf8) 13. d5 {[%emt 0:04:02]} exd5 {[%emt 0:04:01]} 14. Qxd5 {[%emt 0:05:13]} Qb6 {[%emt 0:10:14]} 15. O-O-O {[%emt 0:21:20]} O-O-O {[%emt 0:08:44]} 16. Qc4 {[%emt 0:04:10]} Qe6 {[%emt 0:01:51] [#]} (16... Be6 $11 {keeps the balance.} 17. Nd5 Bxd5 18. Rxd5 (18. Qxd5 f6 $11) 18... f6) 17. Nb5 {[%emt 0:07:54]} (17. Qa4 $1 $16 {Black must now prevent Bc4.} Nb8 18. Qxa7) 17... a6 {[%emt 0:05:59]} 18. Nd6+ {[%emt 0:00:59]} Bxd6 {[%emt 0:04:27]} 19. Rxd6 {[%emt 0:00:15]} Qxc4+ {[%emt 0:00:18]} 20. Bxc4 {[%emt 0:00:01] White wants to play e6.} Rhe8 {[%emt 0:04:50] Inhibits e6.} (20... b5 $11 21. Bf1 (21. Bd5 Nxe5 22. Bxe5 Rxd6 $11) 21... Kb7) 21. Bg5 {[%emt 0:09:28] White is more active.} (21. e6 $1 $16 {[%cal Od6c6] Threatening mate with Rc6+!} Rxe6 22. Bxe6 Bxe6 23. Bxh6 gxh6 24. Ne2) 21... f6 {[%emt 0:00:14]} (21... Nxe5 22. Rxd8+ Rxd8 23. Bxd8 $16) 22. exf6 {[%emt 0:00:12]} ({But not} 22. Bxh6 Nxe5 23. Rxd8+ Rxd8 24. Bxg7 Nxc4 $17) 22... Nxf6 {[%emt 0:00:06]} 23. Rxd8+ {[%emt 0:00:06]} Kxd8 {[%emt 0:00:10]} 24. Nh3 {[%emt 0:01:33]} b5 {[%emt 0:00:51] [#] And now ...Bxh3 would win.} 25. Nf4 {[%emt 0:03:27][%cal Of4h5] Threatens to win with Nxh5!} bxc4 {[%emt 0:00:23]} 26. Nxh5 $1 {[%emt 0:00:05]} Nhg8 $2 {[%emt 0:01:43][%mdl 8192]} (26... Re2 $1 $11) 27. Nxg7 $18 {[%emt 0:00:01]} Re5 {[%emt 0:00:12]} 28. g4 $2 {[%emt 0:01:21]} ({White must play} 28. f4 $18 Rd5 29. Nxf5) 28... Bd3 {[%emt 0:00:26] Weighted Error Value: White=0.32/Black=0.33} 1/2-1/2

[Event "Slovakian-ch Youth 2022"]
[Site "Lubovna"]
[Date "2022.05.24"]
[Round "5.2"]
[White "Benci, Jozef"]
[Black "Oruzinsky, Juraj"]
[Result "0-1"]
[ECO "C77"]
[WhiteElo "1873"]
[BlackElo "1656"]
[Annotator "NA RC COMBH"]
[PlyCount "70"]
[EventDate "2022.05.22"]
[EventCountry "SVK"]
[SourceTitle "playchess.com"]
[Source "ChessBase"]
[SourceQuality "1"]
[TimeControl "40/5400+30:1800+30"]

1. e4 {[%emt 0:00:02]} e5 {[%emt 0:00:09]} 2. Nf3 {[%emt 0:00:05]} Nc6 {[%emt 0:00:04]} 3. Bb5 {[%emt 0:00:16]} a6 {[%emt 0:00:16]} 4. Ba4 {[%emt 0:00:06]} Nf6 {[%emt 0:00:38]} 5. d3 {[%emt 0:00:10]} b5 {[%emt 0:01:49]} 6. Bb3 {[%emt 0:00:14]} d6 {[%emt 0:00:36]} 7. c3 {[%emt 0:03:10]} Be7 {[%emt 0:02:27]} 8. O-O {[%emt 0:02:02]} O-O {[%emt 0:00:14]} 9. Nbd2 {[%emt 0:01:12]} Bg4 {[%emt 0:00:40]} 10. h3 {[%emt 0:02:04]} Bd7 {[%emt 0:00:48]} 11. Re1 {[%emt 0:02:45]} Rb8 {[%emt 0:02:20]} 12. Nf1 {[%emt 0:03:30]} b4 {[%emt 0:00:38]} 13. Ng3 {[%emt 0:01:51]} bxc3 {[%emt 0:00:54]} 14. bxc3 {[%emt 0:00:11]} h6 {[%emt 0:05:06]} 15. Nh2 {[%emt 0:13:24]} Nh7 {[%emt 0:02:35]} 16. Nf3 {[%emt 0:07:49]} Ng5 {[%emt 0:00:43]} 17. Be3 {[%emt 0:29:24]} Bf6 {[%emt 0:03:03]} 18. Ba4 {[%emt 0:08:39]} Nxf3+ {[%emt 0:06:32]} 19. Qxf3 {[%emt 0:00:26]} Bg5 {[%emt 0:01:20]} 20. Nf5 {[%emt 0:08:08]} Bxe3 {[%emt 0:03:52]} 21. Nxe3 {[%emt 0:00:15]} Ne7 {[%emt 0:01:11]} 22. Bxd7 {[%emt 0:04:09]} Qxd7 {[%emt 0:00:07]} 23. Qg3 {[%emt 0:01:21]} f5 {[%emt 0:02:57]} 24. Nxf5 {[%emt 0:05:31]} Nxf5 {[%emt 0:00:23]} 25. exf5 {[%emt 0:00:02]} Qxf5 {[%emt 0:03:19]} 26. Rab1 {[%emt 0:01:30]} Qf7 {[%emt 0:01:18]} 27. Qe3 {[%emt 0:02:12]} Rxb1 {[%emt 0:01:36]} 28. Rxb1 {[%emt 0:00:02]} Qxa2 {[%emt 0:00:08]} 29. Rc1 {[%emt 0:01:12]} Qb2 {[%emt 0:01:03]} 30. d4 {[%emt 0:00:43]} Rxf2 {[%emt 0:01:13]} 31. Re1 {[%emt 0:02:24]} Rxg2+ {[%emt 0:00:45]} 32. Kf1 {[%emt 0:00:02]} Rg6 {[%emt 0:03:05]} 33. Re2 {[%emt 0:00:53]} Qb1+ {[%emt 0:00:41]} 34. Re1 {[%emt 0:00:27]} Qf5+ {[%emt 0:00:49]} 35. Ke2 {[%emt 0:00:05]} Qc2+ {[%emt 0:00:20]} 0-1

[Event "Slovakian-ch Youth 2022"]
[Site "Lubovna"]
[Date "2022.05.24"]
[Round "5.2"]
[White "Mazak, Ryan"]
[Black "Muller, Tomas"]
[Result "1-0"]
[ECO "C00"]
[WhiteElo "1575"]
[BlackElo "1240"]
[Annotator "NA RC COMBH"]
[PlyCount "107"]
[EventDate "2022.05.22"]
[EventCountry "SVK"]
[SourceTitle "playchess.com"]
[Source "ChessBase"]
[SourceQuality "1"]
[TimeControl "40/5400+30:1800+30"]

1. e4 {[%emt 0:00:05]} e6 {[%emt 0:02:45]} 2. b3 {[%emt 0:00:11]} d5 {[%emt 0:02:32]} 3. Bb2 {[%emt 0:00:31]} Be7 {[%emt 0:03:06]} 4. Bxg7 {[%emt 0:00:37]} Bf6 {[%emt 0:03:54]} 5. Bxh8 {[%emt 0:00:45]} Bxh8 {[%emt 0:03:17]} 6. c3 {[%emt 0:01:43]} Bd7 {[%emt 0:03:01]} 7. exd5 {[%emt 0:01:41]} exd5 {[%emt 0:01:34]} 8. d4 {[%emt 0:01:20]} Nc6 {[%emt 0:02:28]} 9. Nf3 {[%emt 0:04:02]} Qe7+ {[%emt 0:02:13]} 10. Qe2 {[%emt 0:00:58]} Qxe2+ {[%emt 0:01:18]} 11. Bxe2 {[%emt 0:00:25]} Nge7 {[%emt 0:02:02]} 12. O-O {[%emt 0:00:42]} O-O-O {[%emt 0:01:19]} 13. Nbd2 {[%emt 0:00:35]} Rg8 {[%emt 0:02:20]} 14. Kh1 {[%emt 0:00:48]} Bf6 {[%emt 0:07:53]} 15. Rad1 {[%emt 0:02:23]} Kb8 {[%emt 0:04:41]} 16. Rfe1 {[%emt 0:01:40]} a6 {[%emt 0:03:57]} 17. Nf1 {[%emt 0:05:06]} Be6 {[%emt 0:06:01]} 18. Ne3 {[%emt 0:03:20]} Rd8 {[%emt 0:04:36]} 19. Nc2 {[%emt 0:03:15]} Rd6 {[%emt 0:01:42]} 20. Bf1 {[%emt 0:02:08]} Bf5 {[%emt 0:02:46]} 21. Bd3 {[%emt 0:02:27]} Bxd3 {[%emt 0:00:45]} 22. Rxd3 {[%emt 0:00:25]} Nd8 {[%emt 0:06:42]} 23. Rde3 {[%emt 0:01:44]} Ne6 {[%emt 0:03:11]} 24. Ne5 {[%emt 0:04:04]} Bxe5 {[%emt 0:01:41]} 25. Rxe5 {[%emt 0:00:47]} Rd8 {[%emt 0:04:28]} 26. g3 {[%emt 0:01:09]} Kc8 {[%emt 0:00:43]} 27. f4 {[%emt 0:02:18]} Kd7 {[%emt 0:01:04]} 28. f5 {[%emt 0:00:26]} Rf8 {[%emt 0:01:26]} 29. fxe6+ {[%emt 0:00:45]} fxe6 {[%emt 0:00:17]} 30. Rxe6 {[%emt 0:00:24]} Rf7 {[%emt 0:00:10]} 31. Rxe7+ {[%emt 0:00:34]} Rxe7 {[%emt 0:00:08]} 32. Rxe7+ {[%emt 0:00:07]} Kxe7 {[%emt 0:00:06]} 33. Kg2 {[%emt 0:00:15]} Kf6 {[%emt 0:00:08]} 34. Kf3 {[%emt 0:00:08]} Kf5 {[%emt 0:00:06]} 35. Ne3+ {[%emt 0:00:04]} Ke6 {[%emt 0:00:14]} 36. Kf4 {[%emt 0:00:12]} c6 {[%emt 0:00:14]} 37. g4 {[%emt 0:00:12]} Kf6 {[%emt 0:00:08]} 38. h4 {[%emt 0:00:06]} h6 {[%emt 0:00:10]} 39. g5+ {[%emt 0:00:08]} hxg5+ {[%emt 0:00:10]} 40. hxg5+ {[%emt 0:00:08]} Kg6 {[%emt 0:00:07]} 41. c4 {[%emt 0:30:23]} dxc4 {[%emt 0:30:11]} 42. bxc4 {[%emt 0:00:05]} b6 {[%emt 0:00:17]} 43. d5 {[%emt 0:00:09]} cxd5 {[%emt 0:00:09]} 44. cxd5 {[%emt 0:00:10]} Kf7 {[%emt 0:00:06]} 45. d6 {[%emt 0:00:08]} Ke6 {[%emt 0:00:07]} 46. g6 {[%emt 0:00:09]} Kxd6 {[%emt 0:00:07]} 47. g7 {[%emt 0:00:05]} Ke7 {[%emt 0:00:13]} 48. g8=Q {[%emt 0:00:08]} Kd6 {[%emt 0:00:08]} 49. Nf5+ {[%emt 0:00:06]} Kd7 {[%emt 0:00:07]} 50. Ke5 {[%emt 0:00:08]} Kc6 {[%emt 0:00:07]} 51. Qd5+ {[%emt 0:00:05]} Kc7 {[%emt 0:00:08]} 52. Qd6+ {[%emt 0:00:04]} Kb7 {[%emt 0:00:11]} 53. Qd7+ {[%emt 0:00:07]} Kb8 {[%emt 0:00:08]} 54. Nd6 {[%emt 0:00:05]} 1-0